[Event "GER-chT States Women 2022"]
[Site "Braunfels"]
[Date "2022.06.17"]
[Round "2.30"]
[White "Mueller, Riyanna"]
[Black "Braeutigam, Katerina"]
[Result "0-1"]
[ECO "B13"]
[WhiteElo "1521"]
[BlackElo "1860"]
[Annotator "NA RC"]
[PlyCount "62"]
[EventDate "2022.06.15"]
[EventType "swiss"]
[EventCountry "GER"]
[SourceTitle "playchess.com"]
[Source "ChessBase"]
[SourceQuality "1"]
[TimeControl "40/5400+30:1800+30"]

1. e4 {[%emt 0:00:03]} c6 {[%emt 0:00:04]} 2. d4 {[%emt 0:00:05]} d5 {[%emt 0:00:03]} 3. exd5 {[%emt 0:00:06]} cxd5 {[%emt 0:00:07]} 4. Bd3 {[%emt 0:00:07]} Nc6 {[%emt 0:00:06]} 5. c3 {[%emt 0:00:07]} Nf6 {[%emt 0:00:09]} 6. Bf4 {[%emt 0:00:19]} g6 {[%emt 0:00:15]} 7. Nf3 {[%emt 0:00:35]} Bg7 {[%emt 0:00:16] 7...Bf5 is more fashionable.} 8. Nbd2 {[%emt 0:00:31]} Bf5 {[%emt 0:01:14]} 9. Bxf5 {[%emt 0:00:08]} gxf5 {[%emt 0:00:08]} 10. Ne5 {[%emt 0:00:26]} Ne4 {[%emt 0:01:30]} 11. Nd3 {[%emt 0:00:35]} Rc8 {[%emt 0:04:38]} 12. Qe2 {[%emt 0:07:41]} e6 {[%emt 0:06:42]} 13. h3 {[%emt 0:01:55]} h5 {[%emt 0:06:34] [#]} 14. Nb3 $146 {[%emt 0:03:32]} ({Predecessor:} 14. f3 Nxd2 15. Qxd2 h4 16. g4 hxg3 17. Bxg3 Bh6 18. f4 Qa5 19. Qf2 Bg7 20. Kf1 {0-1 (75) Boskovic,D (2434)-Stevic,H (2610) Rijeka 2010}) 14... b6 {[%emt 0:11:09]} 15. Be3 {[%emt 0:22:28]} h4 {[%emt 0:05:53]} 16. O-O-O {[%emt 0:07:41]} Na5 {[%emt 0:16:22]} 17. Nxa5 {[%emt 0:01:43]} bxa5 {[%emt 0:00:02]} 18. Nf4 {[%emt 0:01:15]} Qb6 {[%emt 0:05:59]} 19. Nh5 {[%emt 0:15:50]} Bf8 {[%emt 0:17:22]} 20. g4 {[%emt 0:03:44]} Ba3 {[%emt 0:05:47]} 21. Nf6+ {[%emt 0:04:50]} Nxf6 {[%emt 0:02:01]} 22. bxa3 {[%emt 0:00:17]} Ne4 {[%emt 0:02:45]} 23. Bd2 {[%emt 0:04:40]} Rb8 {[%emt 0:01:46]} 24. Kc2 {[%emt 0:00:54]} Qb2+ {[%emt 0:00:30]} 25. Kd3 {[%emt 0:00:10]} Qb5+ {[%emt 0:00:37]} 26. Ke3 {[%emt 0:00:20]} f4+ {[%emt 0:00:09]} 27. Kf3 {[%emt 0:00:54]} Ng5+ {[%emt 0:00:13]} 28. Kxf4 {[%emt 0:00:11]} Qxe2 {[%emt 0:00:44]} 29. Kxg5 {[%emt 0:00:13]} Ke7 {[%emt 0:00:47]} 30. Be3 {[%emt 0:00:50]} Qf3 {[%emt 0:00:19]} 31. Rb1 {[%emt 0:00:33]} Qf6# {[%emt 0:00:19]} 0-1

[Event "GER-chT States Women 2022"]
[Site "Braunfels"]
[Date "2022.06.17"]
[Round "2.31"]
[White "Leib, Britta"]
[Black "Anisimova, Mariya"]
[Result "1-0"]
[ECO "C54"]
[WhiteElo "1906"]
[BlackElo "1386"]
[Annotator "NA RC"]
[PlyCount "57"]
[EventDate "2022.06.15"]
[EventType "swiss"]
[EventCountry "GER"]
[SourceTitle "playchess.com"]
[Source "ChessBase"]
[SourceQuality "1"]
[TimeControl "40/5400+30:1800+30"]

1. e4 {[%emt 0:00:05]} e5 {[%emt 0:00:05]} 2. Nf3 {[%emt 0:00:34]} Nc6 {[%emt 0:00:06]} 3. Bc4 {[%emt 0:00:22]} Bc5 {[%emt 0:00:07]} 4. c3 {[%emt 0:01:38]} Nf6 {[%emt 0:00:12]} 5. d4 {[%emt 0:00:29]} exd4 {[%emt 0:00:12]} 6. O-O {[%emt 0:00:08]} dxc3 {[%emt 0:14:23]} 7. e5 {[%emt 0:08:02]} Ng4 {[%emt 0:04:55]} 8. Bxf7+ {[%emt 0:05:16]} Kf8 {[%emt 0:08:21]} 9. Bb3 {[%emt 0:12:49]} Ngxe5 {[%emt 0:09:18]} 10. Nxc3 {[%emt 0:05:24]} d6 {[%emt 0:13:20]} 11. Bg5 {[%emt 0:12:28]} Qe8 {[%emt 0:00:59]} 12. Nxe5 {[%emt 0:06:03]} Nxe5 {[%emt 0:01:03]} 13. Ne4 {[%emt 0:04:35]} Bb6 {[%emt 0:04:45]} 14. Nxd6 {[%emt 0:06:27]} Qg6 {[%emt 0:04:06]} 15. Nxc8 {[%emt 0:02:50]} Rxc8 {[%emt 0:01:45]} 16. Bf4 {[%emt 0:05:07]} Re8 {[%emt 0:06:58]} 17. Bxe5 {[%emt 0:07:00]} Rxe5 $18 {[%emt 0:00:40]} 18. Qf3+ $2 {[%emt 0:00:01]} (18. Re1 $18 Rxe1+ 19. Qxe1) 18... Qf5 {[%emt 0:00:56]} (18... Qf6 $1 $11) 19. Qxb7 {[%emt 0:01:06]} g6 {[%emt 0:00:26]} 20. Bd1 {[%emt 0:04:57]} Bxf2+ {[%emt 0:05:04]} 21. Kh1 {[%emt 0:00:04]} Re1 {[%emt 0:07:24]} 22. Qb8+ {[%emt 0:01:33]} Kg7 {[%emt 0:01:07]} 23. Qxc7+ {[%emt 0:00:27]} Kh6 {[%emt 0:00:22]} 24. Bf3 {[%emt 0:02:58]} Rxa1 {[%emt 0:02:15]} 25. Rxa1 {[%emt 0:00:02]} Rc8 {[%emt 0:00:31]} 26. Qb7 {[%emt 0:00:22]} Qc2 {[%emt 0:01:02]} 27. g3 {[%emt 0:04:44]} Bd4 {[%emt 0:02:24]} 28. Rd1 {[%emt 0:05:26]} Rc7 {[%emt 0:07:17]} 29. Qb4 {[%emt 0:00:59]} 1-0

[Event "GER-chT States Women 2022"]
[Site "Braunfels"]
[Date "2022.06.17"]
[Round "2.32"]
[White "Perovic-Ottstadt, Sanja"]
[Black "Freter, Anke"]
[Result "0-1"]
[ECO "A48"]
[WhiteElo "1507"]
[BlackElo "1856"]
[Annotator "NA RC"]
[PlyCount "76"]
[EventDate "2022.06.15"]
[EventType "swiss"]
[EventCountry "GER"]
[SourceTitle "playchess.com"]
[Source "ChessBase"]
[SourceQuality "1"]
[TimeControl "40/5400+30:1800+30"]

1. d4 {[%emt 0:00:03]} Nf6 {[%emt 0:00:06]} 2. Nf3 {[%emt 0:00:08]} g6 {[%emt 0:00:14]} 3. c3 {[%emt 0:00:14]} Bg7 {[%emt 0:00:47]} 4. Bg5 {[%emt 0:00:47]} O-O {[%emt 0:00:55]} 5. Nbd2 {[%emt 0:00:22]} d6 {[%emt 0:01:06]} 6. e4 {[%emt 0:00:32]} Nbd7 {[%emt 0:03:01]} 7. Bd3 {[%emt 0:00:51]} Re8 {[%emt 0:02:36]} 8. O-O {[%emt 0:01:28]} e5 {[%emt 0:03:01]} 9. dxe5 {[%emt 0:01:14]} Nxe5 {[%emt 0:03:54]} 10. Nxe5 {[%emt 0:01:16]} dxe5 {[%emt 0:02:02]} 11. Bc4 {[%emt 0:01:38]} h6 {[%emt 0:04:44]} 12. Bh4 {[%emt 0:03:03]} g5 {[%emt 0:02:09]} 13. Bg3 {[%emt 0:00:38]} Qe7 {[%emt 0:16:59]} 14. f3 {[%emt 0:02:49]} Nh5 {[%emt 0:02:31]} 15. Bf2 {[%emt 0:03:14]} Nf4 {[%emt 0:01:24]} 16. Qb3 {[%emt 0:08:37]} c6 {[%emt 0:02:09]} 17. Rfe1 {[%emt 0:03:36]} g4 {[%emt 0:02:37]} 18. Rad1 {[%emt 0:01:42]} (18. Be3 $142) 18... h5 {[%emt 0:06:10]} 19. Nf1 {[%emt 0:03:32]} gxf3 {[%emt 0:06:17]} 20. gxf3 {[%emt 0:00:46]} Nh3+ {[%emt 0:05:04]} 21. Kg2 {[%emt 0:00:36]} Qf6 {[%emt 0:06:40]} 22. Be3 {[%emt 0:07:59]} Qg6+ {[%emt 0:06:54]} 23. Kh1 {[%emt 0:01:48]} b5 {[%emt 0:08:56]} 24. Be2 {[%emt 0:02:20]} Bh6 {[%emt 0:00:40]} 25. Bc5 {[%emt 0:00:50]} Be6 {[%emt 0:04:35]} 26. c4 {[%emt 0:02:20]} Nf4 {[%emt 0:00:41]} 27. Ne3 {[%emt 0:03:05]} Kh7 $15 {[%emt 0:00:24]} ({Of course not} 27... Nxe2 28. Rxe2 Qf6 29. Qc2) 28. Rg1 {[%emt 0:01:31]} Qf6 {[%emt 0:00:18]} 29. Qc2 {[%emt 0:02:18]} Nxe2 {[%emt 0:04:50]} 30. Qxe2 {[%emt 0:00:40]} Bxe3 {[%emt 0:01:33]} 31. Qxe3 {[%emt 0:03:07]} Bxc4 {[%emt 0:01:32]} 32. b3 {[%emt 0:00:25]} Be6 {[%emt 0:00:00]} 33. Rd6 {[%emt 0:01:40]} Rg8 {[%emt 0:00:35]} 34. Rxc6 {[%emt 0:01:30]} Rxg1+ {[%emt 0:00:12]} 35. Kxg1 {[%emt 0:00:20]} Rg8+ {[%emt 0:00:05]} 36. Kh1 {[%emt 0:00:42]} Qg7 {[%emt 0:00:22]} 37. Qg1 {[%emt 0:05:15]} Qh6 {[%emt 0:00:09]} 38. Qf2 {[%emt 0:01:35]} Qc1+ {[%emt 0:00:27]} 0-1

[Event "GER-chT States Women 2022"]
[Site "Braunfels"]
[Date "2022.06.17"]
[Round "2.33"]
[White "Wagner, Victoria"]
[Black "Rieping, Lea"]
[Result "0-1"]
[ECO "B01"]
[WhiteElo "1806"]
[BlackElo "1912"]
[Annotator "NA RC"]
[PlyCount "90"]
[EventDate "2022.06.15"]
[EventType "swiss"]
[EventCountry "GER"]
[SourceTitle "playchess.com"]
[Source "ChessBase"]
[SourceQuality "1"]
[TimeControl "40/5400+30:1800+30"]

1. e4 {[%emt 0:00:03]} d5 {[%emt 0:00:06]} 2. exd5 {[%emt 0:00:06]} Qxd5 {[%emt 0:00:05]} 3. Nc3 {[%emt 0:00:08]} Qa5 {[%emt 0:00:03]} 4. d4 {[%emt 0:00:09]} Nf6 {[%emt 0:00:09]} 5. Bc4 {[%emt 0:00:46]} Nc6 {[%emt 0:00:55]} 6. Nge2 {[%emt 0:00:57]} Bg4 {[%emt 0:01:54]} 7. Bd2 {[%emt 0:05:22]} O-O-O {[%emt 0:10:53]} 8. f3 {[%emt 0:00:33]} Bh5 {[%emt 0:00:06]} 9. a3 {[%emt 0:02:14]} Qf5 {[%emt 0:11:28]} 10. Ng3 {[%emt 0:20:39]} Qd7 {[%emt 0:00:24]} 11. Nxh5 {[%emt 0:07:24]} Nxh5 {[%emt 0:00:30]} 12. Bxf7 {[%emt 0:10:21]} (12. d5 $16 Nd4 13. Bg5) 12... Qxd4 {[%emt 0:01:07]} 13. Bxh5 {[%emt 0:08:27]} ({White should try} 13. Ne4 $14 Nf6 14. c3) 13... Qe5+ {[%emt 0:00:07]} (13... Qh4+ $15 14. Kf1 Qxh5) 14. Qe2 {[%emt 0:00:33]} Qxh5 {[%emt 0:00:05]} 15. Qe6+ {[%emt 0:02:38]} Kb8 {[%emt 0:00:04]} 16. Be3 {[%emt 0:02:06]} g6 {[%emt 0:10:51]} 17. O-O {[%emt 0:06:10]} Rd6 {[%emt 0:05:38]} 18. Qg4 {[%emt 0:05:27]} Qxg4 {[%emt 0:10:17]} 19. fxg4 {[%emt 0:00:06]} Bg7 {[%emt 0:00:12]} 20. Rf7 {[%emt 0:05:51]} Bxc3 {[%emt 0:05:54]} 21. bxc3 {[%emt 0:00:05]} Rf6 {[%emt 0:04:06]} 22. Rxf6 {[%emt 0:02:20]} exf6 {[%emt 0:00:05]} 23. Rf1 {[%emt 0:05:06]} Re8 {[%emt 0:06:57]} 24. Rxf6 {[%emt 0:02:58]} Ne5 {[%emt 0:00:09]} 25. h3 {[%emt 0:00:56]} Nc4 {[%emt 0:00:39]} 26. Bc1 {[%emt 0:00:39]} Kc8 {[%emt 0:00:54]} 27. Kf2 {[%emt 0:00:47]} Kd7 {[%emt 0:00:12]} 28. Rf7+ $11 {[%emt 0:01:33]} Re7 {[%emt 0:00:07]} 29. Rxe7+ {[%emt 0:00:35]} Kxe7 {[%emt 0:00:06]} 30. g5 {[%emt 0:02:45]} Kd7 {[%emt 0:11:41]} 31. Ke2 {[%emt 0:01:02]} Kc6 {[%emt 0:02:06]} 32. Kd3 {[%emt 0:01:10]} Kd5 {[%emt 0:01:41]} 33. g3 {[%emt 0:04:05]} b6 {[%emt 0:01:52]} 34. g4 {[%emt 0:01:49]} c6 {[%emt 0:00:49]} 35. a4 {[%emt 0:00:48]} a5 {[%emt 0:00:49]} 36. Ke2 {[%emt 0:01:01]} b5 {[%emt 0:02:53]} 37. axb5 {[%emt 0:00:13]} cxb5 {[%emt 0:00:06]} 38. Kd1 {[%emt 0:00:54]} a4 {[%emt 0:00:21]} 39. Ke2 {[%emt 0:00:30]} a3 {[%emt 0:00:07]} 40. Bxa3 {[%emt 0:00:12]} Nxa3 {[%emt 0:00:04]} 41. c4+ {[%emt 0:30:38]} bxc4 {[%emt 0:30:42]} 42. Kd2 {[%emt 0:00:00]} Kd4 {[%emt 0:00:00]} 43. h4 {[%emt 0:00:00]} c3+ {[%emt 0:00:00]} 44. Kd1 {[%emt 0:00:00]} Nc4 {[%emt 0:00:00]} 45. h5 {[%emt 0:00:00]} Ne3+ 0-1

[Event "GER-chT States Women 2022"]
[Site "Braunfels"]
[Date "2022.06.17"]
[Round "2.34"]
[White "Nizamova, Rita"]
[Black "Albayrak, Nese Pinar"]
[Result "1-0"]
[ECO "E91"]
[WhiteElo "1814"]
[BlackElo "1683"]
[Annotator "NA RC"]
[PlyCount "86"]
[EventDate "2022.06.15"]
[EventType "swiss"]
[EventCountry "GER"]
[SourceTitle "playchess.com"]
[Source "ChessBase"]
[SourceQuality "1"]
[TimeControl "40/5400+30:1800+30"]

1. d4 {[%emt 0:00:01]} Nf6 {[%emt 0:00:06]} 2. c4 {[%emt 0:00:06]} g6 {[%emt 0:01:38]} 3. Nc3 {[%emt 0:00:47]} Bg7 {[%emt 0:00:07]} 4. e4 {[%emt 0:01:02]} d6 {[%emt 0:00:14]} 5. Nf3 {[%emt 0:00:42]} O-O {[%emt 0:00:08]} 6. Be2 {[%emt 0:00:14]} Nc6 {[%emt 0:00:30]} 7. d5 {[%emt 0:01:25]} Nb4 {[%emt 0:11:07]} 8. O-O {[%emt 0:04:06]} Na6 9. h3 {[%emt 0:11:26]} Nc5 {[%emt 0:09:35]} 10. Qc2 {[%emt 0:10:42]} a5 $14 {[%emt 0:06:22]} 11. Be3 {[%emt 0:02:28]} Re8 {[%emt 0:06:28]} 12. Bxc5 {[%emt 0:15:20]} dxc5 {[%emt 0:00:09]} 13. e5 {[%emt 0:00:36]} Bf5 {[%emt 0:05:54]} 14. Qc1 {[%emt 0:08:00]} Nd7 {[%emt 0:04:01]} 15. g4 {[%emt 0:02:50]} Nxe5 {[%emt 0:06:16]} 16. gxf5 {[%emt 0:00:48]} gxf5 {[%emt 0:01:13]} 17. Nxe5 {[%emt 0:00:16]} Bxe5 {[%emt 0:00:06]} 18. Qg5+ {[%emt 0:00:17]} Kh8 {[%emt 0:00:35]} 19. Qxf5 {[%emt 0:00:30]} Rg8+ {[%emt 0:01:48]} 20. Kh1 {[%emt 0:00:32]} Bd4 {[%emt 0:09:04]} 21. Rg1 {[%emt 0:02:27]} e6 {[%emt 0:08:11]} 22. dxe6 {[%emt 0:07:52]} fxe6 {[%emt 0:00:15]} 23. Rxg8+ {[%emt 0:05:28]} Qxg8 {[%emt 0:00:14]} 24. Qg4 {[%emt 0:00:22]} Bxf2 {[%emt 0:08:52]} 25. Qxg8+ {[%emt 0:00:22]} Rxg8 {[%emt 0:00:02]} 26. Bg4 {[%emt 0:00:00]} e5 {[%emt 0:01:07]} 27. Rf1 {[%emt 0:03:04]} Bd4 {[%emt 0:02:51]} 28. Rf7 {[%emt 0:00:21]} h5 {[%emt 0:03:47]} 29. Bxh5 {[%emt 0:01:02]} Rg1+ 30. Kh2 Rc1 {[%emt 0:00:26]} 31. Rxc7 {[%emt 0:07:04]} Rc2+ {[%emt 0:00:39]} 32. Kg3 Rxb2 {[%emt 0:03:47]} 33. Nb5 {[%emt 0:01:07]} Rxa2 {[%emt 0:03:32]} 34. Rxb7 {[%emt 0:00:28]} Rc2 {[%emt 0:01:32]} 35. Nd6 {[%emt 0:06:12]} a4 {[%emt 0:03:52]} 36. Ra7 {[%emt 0:02:28]} Rc3+ {[%emt 0:02:30]} 37. Kg4 {[%emt 0:00:06]} a3 {[%emt 0:00:09]} 38. Bg6 {[%emt 0:02:52]} Rb3 {[%emt 0:01:24]} 39. Nf5 {[%emt 0:00:46]} Rb8 40. Rh7+ Kg8 41. Ne7+ Kf8 42. Rh8+ Kxe7 43. Rxb8 a2 1-0

[Event "GER-chT States Women 2022"]
[Site "Braunfels"]
[Date "2022.06.17"]
[Round "2.35"]
[White "Pavlov, Liliane"]
[Black "Moeller, Hannah"]
[Result "1-0"]
[ECO "D70"]
[WhiteElo "1742"]
[BlackElo "1833"]
[Annotator "NA RC"]
[PlyCount "69"]
[EventDate "2022.06.15"]
[EventType "swiss"]
[EventCountry "GER"]
[SourceTitle "playchess.com"]
[Source "ChessBase"]
[SourceQuality "1"]
[TimeControl "40/5400+30:1800+30"]

1. d4 {[%emt 0:00:03]} Nf6 {[%emt 0:00:04]} 2. c4 {[%emt 0:00:10]} g6 {[%emt 0:00:07]} 3. Nf3 {[%emt 0:00:06]} Bg7 {[%emt 0:00:03]} 4. g3 {[%emt 0:00:16]} d6 {[%emt 0:00:09]} 5. Bg2 {[%emt 0:00:09]} O-O {[%emt 0:00:09]} 6. O-O {[%emt 0:00:07]} c5 {[%emt 0:00:50]} 7. dxc5 {[%emt 0:00:36]} dxc5 {[%emt 0:00:05]} 8. Nc3 {[%emt 0:00:39]} Nc6 {[%emt 0:00:04]} 9. Be3 {[%emt 0:01:52]} Be6 {[%emt 0:02:12]} 10. Rc1 {[%emt 0:14:15]} Bxc4 {[%emt 0:13:38]} 11. Qa4 {[%emt 0:06:05]} Be6 {[%emt 0:03:26]} 12. Bxc5 {[%emt 0:02:12]} Nd5 {[%emt 0:05:23]} 13. Nxd5 {[%emt 0:06:52]} Qxd5 {[%emt 0:08:32]} 14. Nd4 {[%emt 0:02:48] [#]} Qxa2 $14 {[%emt 0:00:33]} ({Better is} 14... Nxd4 $1 $11 15. Bxd5 Nxe2+ 16. Kg2 Bxd5+ 17. f3 Nxc1 18. Rxc1 Rfc8) 15. Qxa2 {[%emt 0:00:15]} Bxa2 {[%emt 0:00:05]} 16. Nxc6 {[%emt 0:00:29]} bxc6 {[%emt 0:00:07]} 17. Bxc6 {[%emt 0:00:20]} Rab8 {[%emt 0:01:07]} (17... Rac8 $14 {is more appropriate.} 18. Bxe7 Bxb2) 18. Bxe7 {[%emt 0:02:01]} Rfc8 {[%emt 0:00:10]} 19. b4 {[%emt 0:00:27]} Bf8 {[%emt 0:01:29]} 20. Bxf8 {[%emt 0:00:37]} Kxf8 {[%emt 0:00:05]} 21. b5 {[%emt 0:00:36]} Rb6 {[%emt 0:02:08]} 22. Bd7 {[%emt 0:09:33]} Rd8 {[%emt 0:00:41]} 23. Rc7 {[%emt 0:03:21]} a6 {[%emt 0:03:53]} 24. Ra1 {[%emt 0:05:23]} Bc4 {[%emt 0:01:36]} 25. Rxc4 {[%emt 0:01:08]} Rxd7 {[%emt 0:00:06]} 26. bxa6 {[%emt 0:00:24]} Ra7 {[%emt 0:00:05]} 27. Rca4 {[%emt 0:00:49]} Ke7 {[%emt 0:00:20]} 28. Kg2 {[%emt 0:00:45]} Kd7 {[%emt 0:00:47]} 29. Kf3 {[%emt 0:01:57]} Rf6+ {[%emt 0:01:04]} 30. Rf4 {[%emt 0:01:05]} Ke7 {[%emt 0:01:42]} 31. Rxf6 {[%emt 0:00:25]} Kxf6 {[%emt 0:00:05]} 32. Kf4 {[%emt 0:00:19]} h6 {[%emt 0:00:16]} 33. h4 {[%emt 0:00:43]} Ke6 {[%emt 0:00:40]} 34. e4 {[%emt 0:02:03]} f6 {[%emt 0:01:25]} 35. Ke3 {[%emt 0:01:44]} 1-0

[Event "GER-chT States Women 2022"]
[Site "Braunfels"]
[Date "2022.06.17"]
[Round "2.36"]
[White "Kiesel, Lara"]
[Black "Prinzen, Siri Marleen"]
[Result "0-1"]
[ECO "B10"]
[WhiteElo "1737"]
[BlackElo "1744"]
[Annotator "NA RC"]
[PlyCount "84"]
[EventDate "2022.06.15"]
[EventType "swiss"]
[EventCountry "GER"]
[SourceTitle "playchess.com"]
[Source "ChessBase"]
[SourceQuality "1"]
[TimeControl "40/5400+30:1800+30"]

1. e4 {[%emt 0:00:02]} c6 {[%emt 0:00:06]} 2. Nf3 {[%emt 0:00:17]} d5 {[%emt 0:00:08]} 3. Nc3 {[%emt 0:00:10]} Nf6 {[%emt 0:00:55]} 4. e5 {[%emt 0:00:26]} Ne4 {[%emt 0:00:20]} 5. d4 {[%emt 0:00:41]} Nxc3 {[%emt 0:03:09]} 6. bxc3 {[%emt 0:00:07]} e6 {[%emt 0:06:07]} 7. Be2 {[%emt 0:03:03]} c5 {[%emt 0:01:10]} 8. Be3 {[%emt 0:13:00]} Nc6 {[%emt 0:00:49]} 9. O-O {[%emt 0:03:38]} c4 {[%emt 0:08:25]} 10. Ne1 {[%emt 0:02:20]} Ba3 {[%emt 0:03:35]} 11. Bc1 {[%emt 0:22:57]} Be7 {[%emt 0:01:46]} 12. a4 {[%emt 0:04:23]} Qa5 {[%emt 0:02:19]} 13. Bd2 {[%emt 0:04:03]} Bd7 {[%emt 0:01:54]} 14. f4 {[%emt 0:10:58]} O-O-O {[%emt 0:08:13]} 15. Nf3 {[%emt 0:05:02]} Nb8 {[%emt 0:03:12]} 16. Ng5 {[%emt 0:03:22]} Rdf8 {[%emt 0:01:48]} 17. Qe1 {[%emt 0:02:08]} h6 {[%emt 0:03:03]} 18. Nh3 {[%emt 0:00:50]} g6 {[%emt 0:07:00]} 19. Qb1 {[%emt 0:04:27]} Bc6 {[%emt 0:03:18]} 20. Nf2 {[%emt 0:01:53]} Nd7 {[%emt 0:01:59]} 21. Nd1 {[%emt 0:03:03]} a6 {[%emt 0:05:21]} 22. Qa2 {[%emt 0:02:41]} Nb6 {[%emt 0:13:42]} 23. Nb2 {[%emt 0:00:51]} Nd7 {[%emt 0:04:12]} 24. Rf3 {[%emt 0:02:19]} f5 {[%emt 0:02:49]} 25. g3 {[%emt 0:05:28]} g5 {[%emt 0:02:28]} 26. h3 {[%emt 0:02:11]} Rfg8 {[%emt 0:01:47]} 27. Rf2 {[%emt 0:01:11]} gxf4 {[%emt 0:01:10]} 28. Bxf4 {[%emt 0:00:51]} Qxc3 {[%emt 0:02:01]} 29. Rd1 {[%emt 0:00:53]} Qa3 {[%emt 0:01:22]} 30. Qb1 {[%emt 0:01:04]} Qb4 {[%emt 0:01:33]} 31. Kh2 {[%emt 0:00:46]} c3 {[%emt 0:01:13]} 32. Nd3 {[%emt 0:00:42]} Qxb1 {[%emt 0:00:13]} 33. Rxb1 {[%emt 0:00:02]} Bxa4 {[%emt 0:00:17]} 34. Ra1 {[%emt 0:00:56]} Bxc2 {[%emt 0:00:53]} 35. Rc1 {[%emt 0:00:06]} Bxd3 {[%emt 0:00:55]} 36. Rxc3+ {[%emt 0:00:06]} Bc4 {[%emt 0:00:36]} 37. Bxc4 {[%emt 0:00:08]} dxc4 {[%emt 0:00:06]} 38. Rxc4+ {[%emt 0:00:02]} Kb8 {[%emt 0:01:36]} 39. Rfc2 {[%emt 0:00:26]} Nb6 {[%emt 0:01:01]} 40. Rc7 {[%emt 0:00:26]} Nd5 {[%emt 0:00:07]} 41. Rd7 {[%emt 0:30:18]} Rd8 {[%emt 0:30:28]} 42. Rxd8+ {[%emt 0:00:16]} Bxd8 {[%emt 0:00:14]} 0-1

[Event "GER-chT States Women 2022"]
[Site "Braunfels"]
[Date "2022.06.17"]
[Round "2.37"]
[White "Albayrak, Berrak"]
[Black "Wilmink, Anna"]
[Result "1-0"]
[ECO "C00"]
[WhiteElo "1569"]
[BlackElo "1700"]
[Annotator "NA RC"]
[PlyCount "101"]
[EventDate "2022.06.15"]
[EventType "swiss"]
[EventCountry "GER"]
[SourceTitle "playchess.com"]
[Source "ChessBase"]
[SourceQuality "1"]
[TimeControl "40/5400+30:1800+30"]

1. e4 {[%emt 0:00:03]} e6 {[%emt 0:00:07]} 2. d3 {[%emt 0:00:53]} d5 {[%emt 0:00:32]} 3. Nd2 {[%emt 0:00:25]} Nf6 {[%emt 0:01:14]} 4. g3 {[%emt 0:02:33]} d4 {[%emt 0:02:54]} 5. Bg2 {[%emt 0:02:32]} e5 {[%emt 0:04:35]} 6. Ne2 {[%emt 0:13:08]} Nfd7 {[%emt 0:11:29]} 7. O-O {[%emt 0:15:13]} Be7 {[%emt 0:03:53]} 8. f4 {[%emt 0:04:46]} f6 {[%emt 0:02:19]} 9. f5 {[%emt 0:03:23]} Nc6 {[%emt 0:03:48]} 10. Nf3 {[%emt 0:03:06]} Bc5 {[%emt 0:03:04]} 11. Kh1 {[%emt 0:04:09]} Nb6 {[%emt 0:02:48]} 12. c3 {[%emt 0:05:45]} a5 {[%emt 0:04:05]} 13. g4 {[%emt 0:08:29]} Qd6 {[%emt 0:05:25]} 14. Qc2 {[%emt 0:07:15]} dxc3 {[%emt 0:03:13]} 15. bxc3 {[%emt 0:00:21]} Qe7 {[%emt 0:04:57]} 16. d4 {[%emt 0:05:33]} exd4 {[%emt 0:01:43]} 17. cxd4 {[%emt 0:00:38]} Bd6 {[%emt 0:01:27]} 18. a3 {[%emt 0:01:26]} Bd7 {[%emt 0:03:30]} 19. Bf4 {[%emt 0:09:16]} Bxf4 {[%emt 0:03:47]} 20. Nxf4 {[%emt 0:00:06]} O-O-O {[%emt 0:02:19]} 21. Rfc1 {[%emt 0:02:54]} Be8 {[%emt 0:03:17]} 22. Ne6 {[%emt 0:00:58]} Rd7 {[%emt 0:00:35]} 23. Qd2 {[%emt 0:05:13]} a4 {[%emt 0:01:19]} 24. d5 {[%emt 0:02:19]} Ne5 {[%emt 0:01:56]} 25. Nxe5 {[%emt 0:00:16]} fxe5 {[%emt 0:00:15]} 26. Qb2 {[%emt 0:00:05]} Qd6 {[%emt 0:01:04]} 27. Rab1 {[%emt 0:00:37]} h5 {[%emt 0:01:28]} 28. Qxb6 {[%emt 0:00:32]} Qxb6 {[%emt 0:01:39]} 29. Rxb6 {[%emt 0:00:02]} hxg4 {[%emt 0:00:34]} 30. Rb4 {[%emt 0:01:28]} Rf7 {[%emt 0:03:06]} 31. Rbc4 {[%emt 0:00:11]} c6 {[%emt 0:01:48]} 32. Rxa4 {[%emt 0:01:02]} Kb8 {[%emt 0:01:27]} 33. Rb4 {[%emt 0:00:54]} Kc8 {[%emt 0:00:55]} 34. dxc6 {[%emt 0:00:48]} Bxc6 {[%emt 0:00:36]} 35. Rb5 {[%emt 0:00:40]} g3 {[%emt 0:01:26]} 36. h3 {[%emt 0:00:18]} Kd7 {[%emt 0:01:53]} 37. Rxe5 {[%emt 0:00:47]} b6 {[%emt 0:01:06]} 38. Ng5 {[%emt 0:00:31]} Rff8 {[%emt 0:01:05]} 39. Rd1+ {[%emt 0:00:44]} Kc8 {[%emt 0:01:29]} 40. Rc1 {[%emt 0:00:20]} Kd7 {[%emt 0:00:31]} 41. Re6 {[%emt 0:04:36]} Ba8 {[%emt 0:02:46]} 42. Rg6 {[%emt 0:02:22]} Rfg8 {[%emt 0:01:07]} 43. Ne6 {[%emt 0:02:19]} Rh7 {[%emt 0:01:09]} 44. Rxg3 {[%emt 0:00:17]} Kd6 {[%emt 0:00:34]} 45. Rd3+ {[%emt 0:01:25]} Ke5 {[%emt 0:00:47]} 46. Ng5 {[%emt 0:02:59]} Rh5 {[%emt 0:00:10]} 47. Nf7+ {[%emt 0:04:32]} Kf6 {[%emt 0:00:33]} 48. Rc7 {[%emt 0:01:15]} g6 {[%emt 0:02:11]} 49. Rd6+ {[%emt 0:02:51]} Kg7 {[%emt 0:00:07]} 50. Ne5+ {[%emt 0:01:06]} Kh8 {[%emt 0:00:20]} 51. Nxg6+ {[%emt 0:00:21]} 1-0

[Event "GER-chT States Women 2022"]
[Site "Braunfels"]
[Date "2022.06.17"]
[Round "2.38"]
[White "Balazs, Kata"]
[Black "Schilay, Maria"]
[Result "0-1"]
[ECO "D00"]
[WhiteElo "1679"]
[BlackElo "1568"]
[Annotator "NA RC"]
[PlyCount "63"]
[EventDate "2022.06.15"]
[EventType "swiss"]
[EventCountry "GER"]
[SourceTitle "playchess.com"]
[Source "ChessBase"]
[SourceQuality "1"]
[TimeControl "40/5400+30:1800+30"]

1. d4 {[%emt 0:00:04]} d5 {[%emt 0:00:13]} 2. Nc3 {[%emt 0:00:06]} c6 {[%emt 0:00:45]} 3. Bf4 {[%emt 0:00:12]} Nf6 {[%emt 0:00:36]} 4. e3 {[%emt 0:01:48]} Bf5 {[%emt 0:01:54]} 5. f3 {[%emt 0:00:46]} e6 {[%emt 0:01:49]} 6. g4 {[%emt 0:05:02]} Bg6 {[%emt 0:00:36]} 7. Bd3 {[%emt 0:00:58]} Bd6 {[%emt 0:04:30]} 8. Nge2 {[%emt 0:02:25]} Qc7 {[%emt 0:04:44]} 9. h4 {[%emt 0:04:50]} Bxd3 {[%emt 0:11:21]} 10. Qxd3 {[%emt 0:00:26]} Nbd7 {[%emt 0:02:05]} 11. Bxd6 {[%emt 0:10:15]} Qxd6 {[%emt 0:00:18]} 12. O-O-O {[%emt 0:00:46]} O-O-O {[%emt 0:02:31]} 13. h5 {[%emt 0:04:46]} g6 {[%emt 0:12:14]} 14. Rh3 {[%emt 0:10:43]} e5 {[%emt 0:10:07]} 15. Ng3 {[%emt 0:07:48]} Rhe8 {[%emt 0:06:55]} 16. g5 {[%emt 0:07:05]} Ng8 {[%emt 0:00:39]} 17. hxg6 {[%emt 0:05:28]} hxg6 {[%emt 0:01:44]} 18. e4 {[%emt 0:15:33]} Nb6 {[%emt 0:06:14]} 19. exd5 {[%emt 0:01:48]} Nxd5 {[%emt 0:02:06]} 20. Nge4 {[%emt 0:02:32]} Qe6 {[%emt 0:01:56]} 21. Rh4 {[%emt 0:01:36]} Nge7 {[%emt 0:07:34]} 22. Nxd5 {[%emt 0:02:23]} Nxd5 {[%emt 0:00:52]} 23. Nc5 {[%emt 0:00:59]} Qe7 {[%emt 0:03:30]} 24. Ne4 {[%emt 0:01:55]} Qc7 {[%emt 0:04:52]} 25. Qb3 {[%emt 0:01:28]} Nf4 {[%emt 0:03:23]} 26. Nc5 {[%emt 0:05:19]} Ne2+ {[%emt 0:03:45]} 27. Kb1 {[%emt 0:00:46]} Nxd4 {[%emt 0:00:50]} 28. Qc3 {[%emt 0:03:25]} Rd5 {[%emt 0:03:24]} 29. Ne4 {[%emt 0:01:56]} Red8 {[%emt 0:01:05]} 30. Nf2 {[%emt 0:01:40]} Qd6 {[%emt 0:00:51]} 31. Qe1 Nxf3 {[%emt 0:00:40]} 32. Ne4 {[%emt 0:00:00]} 0-1